[Event "December 5 Early 2023"]
[Site "https://www.chess.com"]
[Date "2023.12.05"]
[Round "3"]
[White "Bluebaum, Matthias"]
[Black "Zou, Chen"]
[Result "1/2-1/2"]
[Board "12"]
[TimeControl "180+1"]
[WhiteFideId "24651516"]
[BlackFideId "8610959"]
[WhiteElo "3051"]
[BlackElo "2726"]
[WhiteTeam "GER"]
[BlackTeam "CHN"]
[WhiteClock "0:01:08"]
[BlackClock "0:00:13"]

1. d4 {[%clk 0:03:00]}  d5 {[%clk 0:02:59]} 2. c4 {[%clk 0:03:01]}  e6 {[%clk 0:02:59]} 3. Nc3 {[%clk 0:03:02]}  Nf6 {[%clk 0:02:59]} 4. cxd5 {[%clk 0:03:02]}  exd5 {[%clk 0:02:59]} 5. Bg5 {[%clk 0:03:03]}  Bb4 {[%clk 0:02:57]} 6. Qb3 {[%clk 0:03:01]}  Nc6 {[%clk 0:02:50]} 7. e3 {[%clk 0:03:00]}  h6 {[%clk 0:02:49]} 8. Bxf6 {[%clk 0:02:59]}  Qxf6 {[%clk 0:02:44]} 9. Bd3 {[%clk 0:02:56]}  Qd6 {[%clk 0:02:36]} 10. Ne2 {[%clk 0:02:55]}  O-O {[%clk 0:02:26]} 11. O-O {[%clk 0:02:55]}  Bxc3 {[%clk 0:02:16]} 12. Nxc3 {[%clk 0:02:55]}  Ne7 {[%clk 0:02:17]} 13. Qc2 {[%clk 0:02:41]}  c6 {[%clk 0:02:17]} 14. Rab1 {[%clk 0:02:42]}  Qf6 {[%clk 0:02:16]} 15. b4 {[%clk 0:02:42]}  a6 {[%clk 0:02:16]} 16. a4 {[%clk 0:02:42]}  Bf5 {[%clk 0:02:17]} 17. b5 {[%clk 0:02:41]}  Bxd3 {[%clk 0:02:12]} 18. Qxd3 {[%clk 0:02:41]}  axb5 {[%clk 0:02:12]} 19. axb5 {[%clk 0:02:41]}  Ra3 {[%clk 0:02:13]} 20. Rfd1 {[%clk 0:02:35]}  Rfa8 {[%clk 0:02:09]} 21. Qc2 {[%clk 0:02:24]}  Qf5 {[%clk 0:01:48]} 22. Qxf5 {[%clk 0:02:22]}  Nxf5 {[%clk 0:01:49]} 23. Rdc1 {[%clk 0:02:23]}  Nd6 {[%clk 0:01:49]} 24. bxc6 {[%clk 0:02:22]}  bxc6 {[%clk 0:01:50]} 25. h3 {[%clk 0:02:22]}  Nc4 {[%clk 0:01:49]} 26. Rb7 {[%clk 0:02:18]}  Nd2 {[%clk 0:01:36]} 27. Kh2 {[%clk 0:02:15]}  Nb3 {[%clk 0:01:13]} 28. Rd1 {[%clk 0:02:07]}  Na5 {[%clk 0:01:08]} 29. Rc7 {[%clk 0:01:53]}  Rxc3 {[%clk 0:01:07]} 30. Ra1 {[%clk 0:01:54]}  Rb3 {[%clk 0:00:58]} 31. Rxc6 {[%clk 0:01:54]}  Nxc6 {[%clk 0:00:57]} 32. Rxa8+ {[%clk 0:01:55]}  Kh7 {[%clk 0:00:58]} 33. Rc8 {[%clk 0:01:56]}  Rb6 {[%clk 0:00:51]} 34. Kg3 {[%clk 0:01:55]}  Kg6 {[%clk 0:00:45]} 35. Rc7 {[%clk 0:01:55]}  Kf6 {[%clk 0:00:44]} 36. Kf3 {[%clk 0:01:53]}  Ke6 {[%clk 0:00:45]} 37. Rc8 {[%clk 0:01:52]}  Ne7 {[%clk 0:00:44]} 38. Ra8 {[%clk 0:01:53]}  Rc6 {[%clk 0:00:43]} 39. h4 {[%clk 0:01:52]}  h5 {[%clk 0:00:43]} 40. g3 {[%clk 0:01:51]}  g6 {[%clk 0:00:43]} 41. Ra7 {[%clk 0:01:50]}  Nf5 {[%clk 0:00:43]} 42. Kf4 {[%clk 0:01:47]}  Nd6 {[%clk 0:00:40]} 43. f3 {[%clk 0:01:47]}  Rc4 {[%clk 0:00:35]} 44. Ra6 {[%clk 0:01:43]}  Rb4 {[%clk 0:00:33]} 45. Rc6 {[%clk 0:01:33]}  f6 {[%clk 0:00:31]} 46. Ra6 {[%clk 0:01:29]}  Rc4 {[%clk 0:00:24]} 47. g4 {[%clk 0:01:29]}  hxg4 {[%clk 0:00:23]} 48. fxg4 {[%clk 0:01:30]}  Rc1 {[%clk 0:00:24]} 49. h5 {[%clk 0:01:30]}  gxh5 {[%clk 0:00:16]} 50. gxh5 {[%clk 0:01:31]}  Rh1 {[%clk 0:00:15]} 51. Kg4 {[%clk 0:01:32]}  Rg1+ {[%clk 0:00:15]} 52. Kh4 {[%clk 0:01:21]}  Rh1+ {[%clk 0:00:13]} 53. Kg4 {[%clk 0:01:21]}  Rg1+ {[%clk 0:00:11]} 54. Kh4 {[%clk 0:01:21]}  Ke7 {[%clk 0:00:09]} 55. Ra7+ {[%clk 0:01:22]}  Kf8 {[%clk 0:00:09]} 56. Ra6 {[%clk 0:01:05]}  Nf5+ {[%clk 0:00:08]} 57. Kh3 {[%clk 0:01:06]}  Rh1+ {[%clk 0:00:06]} 58. Kg4 {[%clk 0:01:04]}  Nxe3+ {[%clk 0:00:06]} 59. Kf3 {[%clk 0:01:05]}  Rh3+ {[%clk 0:00:04]} 60. Kf4 {[%clk 0:01:06]}  Kf7 {[%clk 0:00:05]} 61. Ra7+ {[%clk 0:01:05]}  Ke6 {[%clk 0:00:05]} 62. Ra6+ {[%clk 0:01:06]}  Kf7 {[%clk 0:00:05]} 63. Ra7+ {[%clk 0:01:07]}  Kg8 {[%clk 0:00:06]} 64. Ra6 {[%clk 0:01:08]}  Kg7 {[%clk 0:00:05]} 65. Ra7+ {[%clk 0:01:08]}  Kh6 {[%clk 0:00:06]} 66. Rf7 {[%clk 0:01:08]}  Ng2+ {[%clk 0:00:04]} 67. Kg4 {[%clk 0:01:08]}  Rh4+ {[%clk 0:00:04]} 68. Kg3 {[%clk 0:01:08]}  Rxd4 {[%clk 0:00:04]} 69. Kxg2 {[%clk 0:01:03]}  Kxh5 {[%clk 0:00:05]} 70. Rxf6 {[%clk 0:01:03]}  Kg5 {[%clk 0:00:06]} 71. Rd6 {[%clk 0:01:02]}  Kf5 {[%clk 0:00:06]} 72. Kf3 {[%clk 0:01:03]}  Ke5 {[%clk 0:00:07]} 73. Rd8 {[%clk 0:01:03]}  Ra4 {[%clk 0:00:07]} 74. Ke2 {[%clk 0:01:02]}  Kd4 {[%clk 0:00:07]} 75. Rh8 {[%clk 0:01:01]}  Ra2+ {[%clk 0:00:08]} 76. Kd1 {[%clk 0:01:01]}  Kc4 {[%clk 0:00:08]} 77. Rh3 {[%clk 0:01:02]}  d4 {[%clk 0:00:08]} 78. Rg3 {[%clk 0:01:02]}  Rh2 {[%clk 0:00:07]} 79. Rf3 {[%clk 0:01:03]}  Rg2 {[%clk 0:00:07]} 80. Rh3 {[%clk 0:01:03]}  d3 {[%clk 0:00:07]} 81. Rh8 {[%clk 0:01:03]}  Kc3 {[%clk 0:00:08]} 82. Rc8+ {[%clk 0:01:03]}  Kd4 {[%clk 0:00:08]} 83. Rd8+ {[%clk 0:01:04]}  Ke4 {[%clk 0:00:09]} 84. Re8+ {[%clk 0:01:05]}  Kf4 {[%clk 0:00:10]} 85. Rf8+ {[%clk 0:01:05]}  Ke4 {[%clk 0:00:10]} 86. Re8+ {[%clk 0:01:05]}  Kd4 {[%clk 0:00:11]} 87. Rd8+ {[%clk 0:01:06]}  Kc4 {[%clk 0:00:11]} 88. Rc8+ {[%clk 0:01:06]}  Kb3 {[%clk 0:00:12]} 89. Rb8+ {[%clk 0:01:07]}  Kc3 {[%clk 0:00:12]} 90. Rc8+ {[%clk 0:01:07]}  Kb3 {[%clk 0:00:13]} 91. Rb8+ {[%clk 0:01:08]}  Kc3 {[%clk 0:00:13]} 92. Rc8+ {[%clk 0:01:08]} 1/2-1/2

[Event "December 5 Early 2023"]
[Site "https://www.chess.com"]
[Date "2023.12.05"]
[Round "3"]
[White "Tabatabaei, M. Amin"]
[Black "Mamedov, Edgar"]
[Result "0-1"]
[Board "14"]
[TimeControl "180+1"]
[WhiteFideId "12521213"]
[BlackFideId "13739980"]
[WhiteElo "3036"]
[BlackElo "2719"]
[WhiteTeam "IRI"]
[BlackTeam "KAZ"]
[WhiteClock "0:01:09"]
[BlackClock "0:00:17"]

1. d4 {[%clk 0:03:00]}  d5 {[%clk 0:02:59]} 2. Bf4 {[%clk 0:02:59]}  c5 {[%clk 0:02:59]} 3. e3 {[%clk 0:02:58]}  Nc6 {[%clk 0:02:59]} 4. c3 {[%clk 0:02:58]}  Nf6 {[%clk 0:02:58]} 5. Nd2 {[%clk 0:02:56]}  cxd4 {[%clk 0:02:45]} 6. exd4 {[%clk 0:02:55]}  Bf5 {[%clk 0:02:32]} 7. Qb3 {[%clk 0:02:53]}  Qc8 {[%clk 0:02:30]} 8. Ngf3 {[%clk 0:02:51]}  e6 {[%clk 0:02:29]} 9. Nh4 {[%clk 0:02:51]}  Bg4 {[%clk 0:02:28]} 10. h3 {[%clk 0:02:50]}  Bh5 {[%clk 0:02:28]} 11. g4 {[%clk 0:02:50]}  Bg6 {[%clk 0:02:27]} 12. Nxg6 {[%clk 0:02:49]}  hxg6 {[%clk 0:02:27]} 13. Bg2 {[%clk 0:02:45]}  Be7 {[%clk 0:02:27]} 14. O-O {[%clk 0:02:41]}  Bd8 {[%clk 0:02:23]} 15. Rfe1 {[%clk 0:02:39]}  Bc7 {[%clk 0:02:18]} 16. Be3 {[%clk 0:02:32]}  O-O {[%clk 0:02:14]} 17. f4 {[%clk 0:02:30]}  Na5 {[%clk 0:02:10]} 18. Qc2 {[%clk 0:02:29]}  b5 {[%clk 0:02:07]} 19. b3 {[%clk 0:02:29]}  Bd6 {[%clk 0:01:57]} 20. Qd3 {[%clk 0:02:29]}  a6 {[%clk 0:01:50]} 21. Rf1 {[%clk 0:02:28]}  Qc7 {[%clk 0:01:48]} 22. a4 {[%clk 0:02:25]}  b4 {[%clk 0:01:47]} 23. c4 {[%clk 0:02:24]}  dxc4 {[%clk 0:01:47]} 24. bxc4 {[%clk 0:02:20]}  Rad8 {[%clk 0:01:46]} 25. Nb3 {[%clk 0:02:18]}  Qxc4 {[%clk 0:01:42]} 26. Qxc4 {[%clk 0:02:16]}  Nxc4 {[%clk 0:01:43]} 27. Bc1 {[%clk 0:02:11]}  Nd5 {[%clk 0:01:35]} 28. a5 {[%clk 0:02:06]}  Rc8 {[%clk 0:01:27]} 29. Rf2 {[%clk 0:01:55]}  Rc7 {[%clk 0:01:19]} 30. Bf1 {[%clk 0:01:55]}  Rfc8 {[%clk 0:01:16]} 31. f5 {[%clk 0:01:55]}  gxf5 {[%clk 0:01:13]} 32. gxf5 {[%clk 0:01:56]}  Bg3 {[%clk 0:01:13]} 33. Rf3 {[%clk 0:01:54]}  Be1 {[%clk 0:01:09]} 34. fxe6 {[%clk 0:01:53]}  fxe6 {[%clk 0:01:08]} 35. Bg5 {[%clk 0:01:51]}  Bc3 {[%clk 0:01:06]} 36. Ra2 {[%clk 0:01:48]}  Rf7 {[%clk 0:01:02]} 37. Rxf7 {[%clk 0:01:47]}  Kxf7 {[%clk 0:01:03]} 38. Rf2+ {[%clk 0:01:48]}  Kg8 {[%clk 0:01:03]} 39. h4 {[%clk 0:01:46]}  Nxa5 {[%clk 0:01:00]} 40. Nxa5 {[%clk 0:01:39]}  Bxd4 {[%clk 0:01:00]} 41. Kg2 {[%clk 0:01:35]}  Bxf2 {[%clk 0:01:00]} 42. Kxf2 {[%clk 0:01:36]}  Rc2+ {[%clk 0:01:00]} 43. Kf3 {[%clk 0:01:36]}  b3 {[%clk 0:00:56]} 44. Bd3 {[%clk 0:01:30]}  Rc3 {[%clk 0:00:49]} 45. Ke2 {[%clk 0:01:30]}  b2 {[%clk 0:00:47]} 46. Bg6 {[%clk 0:01:30]}  Rc1 {[%clk 0:00:43]} 47. Nb3 {[%clk 0:01:28]}  b1=Q {[%clk 0:00:43]} 48. Bxb1 {[%clk 0:01:29]}  Rxb1 {[%clk 0:00:44]} 49. Nc5 {[%clk 0:01:29]}  Rb6 {[%clk 0:00:38]} 50. Kd3 {[%clk 0:01:28]}  Rc6 {[%clk 0:00:37]} 51. Kd4 {[%clk 0:01:28]}  Kf7 {[%clk 0:00:36]} 52. Bd2 {[%clk 0:01:28]}  Ne7 {[%clk 0:00:31]} 53. Nd3 {[%clk 0:01:26]}  Rd6+ {[%clk 0:00:29]} 54. Ke4 {[%clk 0:01:26]}  Rd5 {[%clk 0:00:26]} 55. Ne5+ {[%clk 0:01:24]}  Ke8 {[%clk 0:00:25]} 56. Bg5 {[%clk 0:01:22]}  Nf5 {[%clk 0:00:22]} 57. Nc6 {[%clk 0:01:19]}  Nd6+ {[%clk 0:00:21]} 58. Ke3 {[%clk 0:01:19]}  Nf7 {[%clk 0:00:20]} 59. Bf4 {[%clk 0:01:18]}  a5 {[%clk 0:00:18]} 60. Ke4 {[%clk 0:01:16]}  a4 {[%clk 0:00:18]} 61. Nd4 {[%clk 0:01:16]}  Rxd4+ {[%clk 0:00:17]} 62. Kxd4 {[%clk 0:01:09]}  e5+ {[%clk 0:00:17]} 0-1

[Event "December 5 Early 2023"]
[Site "https://www.chess.com"]
[Date "2023.12.05"]
[Round "3"]
[White "Kozak, Antoni"]
[Black "Zemlyanskii, Ivan"]
[Result "0-1"]
[Board "15"]
[TimeControl "180+1"]
[WhiteFideId "21832030"]
[BlackFideId "24249971"]
[WhiteElo "2719"]
[BlackElo "3012"]
[WhiteTeam "POL"]
[BlackTeam "RUS"]
[WhiteClock "0:00:00"]
[BlackClock "0:00:41"]

1. e4 {[%clk 0:03:00]}  c5 {[%clk 0:02:59]} 2. Nf3 {[%clk 0:03:01]}  e6 {[%clk 0:03:00]} 3. Nc3 {[%clk 0:03:01]}  Nc6 {[%clk 0:03:00]} 4. Bb5 {[%clk 0:03:01]}  Nge7 {[%clk 0:03:00]} 5. O-O {[%clk 0:03:01]}  Ng6 {[%clk 0:03:00]} 6. d4 {[%clk 0:02:52]}  cxd4 {[%clk 0:03:00]} 7. Nxd4 {[%clk 0:02:53]}  Qc7 {[%clk 0:02:54]} 8. Be3 {[%clk 0:02:45]}  a6 {[%clk 0:02:48]} 9. Be2 {[%clk 0:02:39]}  b5 {[%clk 0:02:38]} 10. f4 {[%clk 0:02:28]}  Bc5 {[%clk 0:02:37]} 11. f5 {[%clk 0:01:28]}  Nge5 {[%clk 0:02:25]} 12. Bf2 {[%clk 0:01:27]}  Qb6 {[%clk 0:02:21]} 13. Nxc6 {[%clk 0:01:22]}  Qxc6 {[%clk 0:02:15]} 14. Bxc5 {[%clk 0:01:07]}  Qxc5+ {[%clk 0:02:15]} 15. Kh1 {[%clk 0:01:07]}  Bb7 {[%clk 0:02:11]} 16. Bd3 {[%clk 0:01:06]}  O-O {[%clk 0:01:55]} 17. f6 {[%clk 0:01:03]}  Ng6 {[%clk 0:01:53]} 18. fxg7 {[%clk 0:00:57]}  Kxg7 {[%clk 0:01:54]} 19. Qf3 {[%clk 0:00:46]}  Qe5 {[%clk 0:01:48]} 20. Rae1 {[%clk 0:00:40]}  f5 {[%clk 0:01:32]} 21. Qh3 {[%clk 0:00:35]}  fxe4 {[%clk 0:01:17]} 22. Rxf8 {[%clk 0:00:21]}  Rxf8 {[%clk 0:01:18]} 23. Qe3 {[%clk 0:00:18]}  exd3 {[%clk 0:01:16]} 24. Qd2 {[%clk 0:00:14]}  Qf4 {[%clk 0:00:54]} 25. Qxd3 {[%clk 0:00:13]}  Qf2 {[%clk 0:00:54]} 26. Rg1 {[%clk 0:00:12]}  Nf4 {[%clk 0:00:48]} 27. Qg3+ {[%clk 0:00:09]}  Qxg3 {[%clk 0:00:48]} 28. hxg3 {[%clk 0:00:10]}  Nxg2 {[%clk 0:00:49]} 29. Kh2 {[%clk 0:00:09]}  Ne3 {[%clk 0:00:47]} 30. Re1 {[%clk 0:00:08]}  Rf2+ {[%clk 0:00:46]} 31. Kh3 {[%clk 0:00:08]}  Nxc2 {[%clk 0:00:45]} 32. Rd1 {[%clk 0:00:08]}  d5 {[%clk 0:00:44]} 33. Kh4 {[%clk 0:00:05]}  Ne3 {[%clk 0:00:43]} 34. Rc1 {[%clk 0:00:02]}  d4 {[%clk 0:00:43]} 35. Nb1 {[%clk 0:00:02]}  h6 {[%clk 0:00:41]} 36. Rc7+ {[%clk 0:00:00]}  Kg6 {[%clk 0:00:41]} 0-1

[Event "December 5 Early 2023"]
[Site "https://www.chess.com"]
[Date "2023.12.05"]
[Round "3"]
[White "Makarian, Rudik"]
[Black "Krysa, Leandro"]
[Result "1/2-1/2"]
[Board "16"]
[TimeControl "180+1"]
[WhiteFideId "44105681"]
[BlackFideId "116807"]
[WhiteElo "3000"]
[BlackElo "2711"]
[WhiteTeam "FID"]
[BlackTeam "ARG"]
[WhiteClock "0:00:31"]
[BlackClock "0:00:30"]

1. d4 {[%clk 0:02:59]}  Nf6 {[%clk 0:02:59]} 2. c4 {[%clk 0:02:59]}  g6 {[%clk 0:02:59]} 3. Nc3 {[%clk 0:03:00]}  d5 {[%clk 0:02:59]} 4. Bf4 {[%clk 0:03:00]}  Bg7 {[%clk 0:02:58]} 5. e3 {[%clk 0:03:00]}  O-O {[%clk 0:02:58]} 6. Rc1 {[%clk 0:02:59]}  Be6 {[%clk 0:02:57]} 7. Nf3 {[%clk 0:02:58]}  dxc4 {[%clk 0:02:51]} 8. Ng5 {[%clk 0:02:58]}  Bg4 {[%clk 0:02:47]} 9. Be2 {[%clk 0:02:48]}  Bxe2 {[%clk 0:02:42]} 10. Qxe2 {[%clk 0:02:48]}  c6 {[%clk 0:02:25]} 11. Qxc4 {[%clk 0:02:45]}  e6 {[%clk 0:02:25]} 12. O-O {[%clk 0:02:45]}  Nd5 {[%clk 0:02:26]} 13. Bxb8 {[%clk 0:02:22]}  Rxb8 {[%clk 0:02:17]} 14. Nf3 {[%clk 0:02:22]}  Nxc3 {[%clk 0:02:12]} 15. Qxc3 {[%clk 0:02:14]}  Qd5 {[%clk 0:02:10]} 16. a3 {[%clk 0:02:13]}  Rfc8 {[%clk 0:02:04]} 17. Qc5 {[%clk 0:02:04]}  Qxc5 {[%clk 0:01:53]} 18. Rxc5 {[%clk 0:02:04]}  Kf8 {[%clk 0:01:50]} 19. Rfc1 {[%clk 0:02:04]}  Ke7 {[%clk 0:01:50]} 20. g4 {[%clk 0:02:03]}  Kd7 {[%clk 0:01:47]} 21. Kg2 {[%clk 0:02:02]}  b6 {[%clk 0:01:45]} 22. R5c2 {[%clk 0:01:53]}  c5 {[%clk 0:01:39]} 23. dxc5 {[%clk 0:01:54]}  Rxc5 {[%clk 0:01:39]} 24. Rxc5 {[%clk 0:01:51]}  bxc5 {[%clk 0:01:39]} 25. Rxc5 {[%clk 0:01:52]}  Rxb2 {[%clk 0:01:32]} 26. Ra5 {[%clk 0:01:51]}  Rb7 {[%clk 0:01:32]} 27. Ng5 {[%clk 0:01:50]}  Ke7 {[%clk 0:01:30]} 28. h4 {[%clk 0:01:29]}  h6 {[%clk 0:01:28]} 29. Ne4 {[%clk 0:01:29]}  Rc7 {[%clk 0:01:28]} 30. Kf3 {[%clk 0:01:25]}  f5 {[%clk 0:01:22]} 31. Ng3 {[%clk 0:01:21]}  Bc3 {[%clk 0:01:09]} 32. Ra6 {[%clk 0:01:19]}  Be5 {[%clk 0:00:54]} 33. gxf5 {[%clk 0:00:56]}  gxf5 {[%clk 0:00:50]} 34. Ne2 {[%clk 0:00:50]}  h5 {[%clk 0:00:48]} 35. Ra4 {[%clk 0:00:41]}  Kf6 {[%clk 0:00:43]} 36. Ng1 {[%clk 0:00:42]}  Rg7 {[%clk 0:00:33]} 37. Nh3 {[%clk 0:00:39]}  Rg4 {[%clk 0:00:31]} 38. Rxa7 {[%clk 0:00:39]}  Rxh4 {[%clk 0:00:31]} 39. Kg2 {[%clk 0:00:33]}  Rg4+ {[%clk 0:00:31]} 40. Kf3 {[%clk 0:00:32]}  Rh4 {[%clk 0:00:31]} 41. Kg2 {[%clk 0:00:31]}  Rg4+ {[%clk 0:00:31]} 42. Kh1 {[%clk 0:00:32]}  Rh4 {[%clk 0:00:30]} 43. Kg2 {[%clk 0:00:31]} 1/2-1/2

[Event "December 5 Early 2023"]
[Site "https://www.chess.com"]
[Date "2023.12.05"]
[Round "3"]
[White "Paltrinieri, Nicholas"]
[Black "Durarbayli, Vasif"]
[Result "0-1"]
[Board "18"]
[TimeControl "180+1"]
[WhiteFideId "828262"]
[BlackFideId "13402935"]
[WhiteElo "2706"]
[BlackElo "2978"]
[WhiteTeam "ITA"]
[BlackTeam "AZE"]
[WhiteClock "0:00:08"]
[BlackClock "0:00:11"]

1. d4 {[%clk 0:03:00]}  d5 {[%clk 0:02:55]} 2. Bf4 {[%clk 0:02:59]}  c5 {[%clk 0:02:54]} 3. e3 {[%clk 0:03:00]}  Nc6 {[%clk 0:02:54]} 4. c3 {[%clk 0:03:00]}  Nf6 {[%clk 0:02:54]} 5. Nd2 {[%clk 0:03:01]}  Bf5 {[%clk 0:02:51]} 6. Ngf3 {[%clk 0:02:58]}  Qb6 {[%clk 0:02:44]} 7. Qb3 {[%clk 0:02:57]}  c4 {[%clk 0:02:44]} 8. Qxb6 {[%clk 0:02:57]}  axb6 {[%clk 0:02:45]} 9. a3 {[%clk 0:02:57]}  b5 {[%clk 0:02:43]} 10. Rc1 {[%clk 0:02:57]}  Nh5 {[%clk 0:02:30]} 11. Ne5 {[%clk 0:02:27]}  f6 {[%clk 0:02:19]} 12. Nxc6 {[%clk 0:02:23]}  bxc6 {[%clk 0:02:19]} 13. Be2 {[%clk 0:02:24]}  Nxf4 {[%clk 0:02:19]} 14. exf4 {[%clk 0:02:25]}  e6 {[%clk 0:02:16]} 15. O-O {[%clk 0:02:16]}  Bd6 {[%clk 0:02:15]} 16. g3 {[%clk 0:02:15]}  h5 {[%clk 0:02:08]} 17. Rfe1 {[%clk 0:02:15]}  Kd7 {[%clk 0:02:06]} 18. Nf3 {[%clk 0:02:10]}  h4 {[%clk 0:01:46]} 19. Bf1 {[%clk 0:01:57]}  hxg3 {[%clk 0:01:27]} 20. fxg3 {[%clk 0:01:54]}  Rag8 {[%clk 0:01:20]} 21. Re3 {[%clk 0:01:46]}  Be4 {[%clk 0:01:13]} 22. Rce1 {[%clk 0:01:41]}  f5 {[%clk 0:01:10]} 23. h4 {[%clk 0:01:37]}  Rh6 {[%clk 0:01:04]} 24. Bg2 {[%clk 0:01:30]}  c5 {[%clk 0:00:52]} 25. Ne5+ {[%clk 0:00:43]}  Bxe5 {[%clk 0:00:45]} 26. fxe5 {[%clk 0:00:44]}  cxd4 {[%clk 0:00:41]} 27. cxd4 {[%clk 0:00:44]}  g5 {[%clk 0:00:38]} 28. Bxe4 {[%clk 0:00:39]}  dxe4 {[%clk 0:00:34]} 29. hxg5 {[%clk 0:00:27]}  Rxg5 {[%clk 0:00:35]} 30. Rf1 {[%clk 0:00:28]}  Kc6 {[%clk 0:00:31]} 31. b3 {[%clk 0:00:19]}  Kd5 {[%clk 0:00:28]} 32. bxc4+ {[%clk 0:00:19]}  bxc4 {[%clk 0:00:29]} 33. a4 {[%clk 0:00:19]}  Kxd4 {[%clk 0:00:26]} 34. Ra3 {[%clk 0:00:19]}  Kxe5 {[%clk 0:00:20]} 35. a5 {[%clk 0:00:19]}  Rh7 {[%clk 0:00:13]} 36. a6 {[%clk 0:00:19]}  Ra7 {[%clk 0:00:13]} 37. Kf2 {[%clk 0:00:17]}  Rgg7 {[%clk 0:00:13]} 38. Rb1 {[%clk 0:00:17]}  Rgc7 {[%clk 0:00:11]} 39. Rb5+ {[%clk 0:00:15]}  Kf6 {[%clk 0:00:11]} 40. Rb2 {[%clk 0:00:13]}  Rc6 {[%clk 0:00:11]} 41. Rc2 {[%clk 0:00:13]}  Raxa6 {[%clk 0:00:11]} 42. Rxa6 {[%clk 0:00:14]}  Rxa6 {[%clk 0:00:12]} 43. Rxc4 {[%clk 0:00:14]}  Ra2+ {[%clk 0:00:12]} 44. Kf1 {[%clk 0:00:13]}  Ra3 {[%clk 0:00:13]} 45. Kf2 {[%clk 0:00:13]}  Ra2+ {[%clk 0:00:13]} 46. Kf1 {[%clk 0:00:13]}  Kg5 {[%clk 0:00:14]} 47. Rc6 {[%clk 0:00:10]}  Kg4 {[%clk 0:00:14]} 48. Rxe6 {[%clk 0:00:11]}  Kxg3 {[%clk 0:00:14]} 49. Rf6 {[%clk 0:00:11]}  f4 {[%clk 0:00:13]} 50. Rh6 {[%clk 0:00:11]}  e3 {[%clk 0:00:13]} 51. Ke1 {[%clk 0:00:10]}  Kf3 {[%clk 0:00:12]} 52. Rh3+ {[%clk 0:00:10]}  Ke4 {[%clk 0:00:13]} 53. Rh8 {[%clk 0:00:11]}  f3 {[%clk 0:00:12]} 54. Rh4+ {[%clk 0:00:08]}  Kd3 {[%clk 0:00:11]} 0-1

[Event "December 5 Early 2023"]
[Site "https://www.chess.com"]
[Date "2023.12.05"]
[Round "3"]
[White "Navara, David"]
[Black "Hambleton, Aman"]
[Result "1-0"]
[Board "19"]
[TimeControl "180+1"]
[WhiteFideId "309095"]
[BlackFideId "2606577"]
[WhiteElo "2971"]
[BlackElo "2704"]
[WhiteTeam "CZE"]
[BlackTeam "CAN"]
[WhiteClock "0:00:16"]
[BlackClock "0:00:01"]

1. d4 {[%clk 0:03:00]}  Nf6 {[%clk 0:02:57]} 2. c4 {[%clk 0:03:01]}  e6 {[%clk 0:02:55]} 3. Nc3 {[%clk 0:03:01]}  Bb4 {[%clk 0:02:54]} 4. e3 {[%clk 0:03:01]}  O-O {[%clk 0:02:48]} 5. Bd3 {[%clk 0:03:02]}  c5 {[%clk 0:02:39]} 6. Nf3 {[%clk 0:02:55]}  d5 {[%clk 0:02:32]} 7. cxd5 {[%clk 0:02:53]}  cxd4 {[%clk 0:02:22]} 8. exd4 {[%clk 0:02:54]}  Nxd5 {[%clk 0:02:02]} 9. O-O {[%clk 0:02:54]}  Nc6 {[%clk 0:01:36]} 10. Bc2 {[%clk 0:02:31]}  Be7 {[%clk 0:01:07]} 11. a3 {[%clk 0:02:26]}  b6 {[%clk 0:00:57]} 12. Qd3 {[%clk 0:02:18]}  g6 {[%clk 0:00:56]} 13. Bh6 {[%clk 0:02:18]}  Re8 {[%clk 0:00:56]} 14. Rfe1 {[%clk 0:01:53]}  Bb7 {[%clk 0:00:43]} 15. Ne4 {[%clk 0:01:34]}  Rc8 {[%clk 0:00:34]} 16. Rac1 {[%clk 0:01:35]}  Bf8 {[%clk 0:00:16]} 17. Qd2 {[%clk 0:01:10]}  Bg7 {[%clk 0:00:10]} 18. h4 {[%clk 0:00:59]}  Na5 {[%clk 0:00:02]} 19. Bxg7 {[%clk 0:00:39]}  Kxg7 {[%clk 0:00:03]} 20. Ba4 {[%clk 0:00:28]}  Bc6 {[%clk 0:00:02]} 21. Bxc6 {[%clk 0:00:25]}  Rxc6 {[%clk 0:00:02]} 22. Ne5 {[%clk 0:00:19]}  Rxc1 {[%clk 0:00:02]} 23. Qxc1 {[%clk 0:00:20]}  Qc8 {[%clk 0:00:02]} 24. Nd6 {[%clk 0:00:17]}  Qxc1 {[%clk 0:00:02]} 25. Nxe8+ {[%clk 0:00:14]}  Kf8 {[%clk 0:00:01]} 26. Rxc1 {[%clk 0:00:15]}  Kxe8 {[%clk 0:00:02]} 27. Rc8+ {[%clk 0:00:15]}  Ke7 {[%clk 0:00:02]} 28. Ra8 {[%clk 0:00:15]}  f6 {[%clk 0:00:02]} 29. Rxa7+ {[%clk 0:00:16]}  Ke8 {[%clk 0:00:03]} 30. Ra8+ {[%clk 0:00:15]}  Ke7 {[%clk 0:00:03]} 31. Ra7+ {[%clk 0:00:16]}  Ke8 {[%clk 0:00:03]} 32. b4 {[%clk 0:00:15]}  fxe5 {[%clk 0:00:02]} 33. bxa5 {[%clk 0:00:15]}  bxa5 {[%clk 0:00:03]} 34. dxe5 {[%clk 0:00:15]}  h5 {[%clk 0:00:01]} 35. Rxa5 {[%clk 0:00:16]} 1-0

[Event "December 5 Early 2023"]
[Site "https://www.chess.com"]
[Date "2023.12.05"]
[Round "3"]
[White "Hua, Lefong"]
[Black "Galchenko, Matvey"]
[Result "1-0"]
[Board "20"]
[TimeControl "180+1"]
[WhiteFideId "2602253"]
[BlackFideId "24175480"]
[WhiteElo "2704"]
[BlackElo "2963"]
[WhiteTeam "CAN"]
[BlackTeam "FID"]
[WhiteClock "0:01:18"]
[BlackClock "0:00:01"]

1. d4 {[%clk 0:03:00]}  Nf6 {[%clk 0:02:59]} 2. c4 {[%clk 0:03:01]}  c5 {[%clk 0:02:58]} 3. d5 {[%clk 0:03:01]}  e6 {[%clk 0:02:58]} 4. Nc3 {[%clk 0:03:01]}  exd5 {[%clk 0:02:58]} 5. cxd5 {[%clk 0:03:02]}  d6 {[%clk 0:02:59]} 6. e4 {[%clk 0:03:02]}  g6 {[%clk 0:03:00]} 7. f4 {[%clk 0:03:03]}  Bg7 {[%clk 0:03:00]} 8. Nf3 {[%clk 0:03:04]}  O-O {[%clk 0:03:00]} 9. Be2 {[%clk 0:03:04]}  Bg4 {[%clk 0:03:00]} 10. O-O {[%clk 0:03:05]}  Bxf3 {[%clk 0:02:59]} 11. Bxf3 {[%clk 0:03:05]}  Nbd7 {[%clk 0:03:00]} 12. Re1 {[%clk 0:03:05]}  Re8 {[%clk 0:02:59]} 13. Be3 {[%clk 0:03:02]}  a6 {[%clk 0:02:58]} 14. Bf2 {[%clk 0:02:55]}  b5 {[%clk 0:02:53]} 15. a3 {[%clk 0:02:55]}  Rb8 {[%clk 0:02:37]} 16. g4 {[%clk 0:02:52]}  h6 {[%clk 0:02:20]} 17. h4 {[%clk 0:02:51]}  h5 {[%clk 0:02:01]} 18. g5 {[%clk 0:02:48]}  Ng4 {[%clk 0:02:00]} 19. Bxg4 {[%clk 0:02:42]}  hxg4 {[%clk 0:02:01]} 20. Qxg4 {[%clk 0:02:39]}  b4 {[%clk 0:01:54]} 21. axb4 {[%clk 0:02:38]}  Rxb4 {[%clk 0:01:43]} 22. Rxa6 {[%clk 0:02:26]}  Rxb2 {[%clk 0:01:33]} 23. e5 {[%clk 0:02:11]}  dxe5 {[%clk 0:01:01]} 24. Rd6 {[%clk 0:02:00]}  Rb7 {[%clk 0:00:42]} 25. f5 {[%clk 0:01:52]}  gxf5 {[%clk 0:00:13]} 26. Qxf5 {[%clk 0:01:51]}  Qe7 {[%clk 0:00:13]} 27. Ne4 {[%clk 0:01:46]}  Ra8 {[%clk 0:00:08]} 28. h5 {[%clk 0:01:38]}  Ra4 {[%clk 0:00:07]} 29. Rc6 {[%clk 0:01:28]}  Rxe4 {[%clk 0:00:03]} 30. Rxe4 {[%clk 0:01:26]}  Rb1+ {[%clk 0:00:03]} 31. Kg2 {[%clk 0:01:26]}  Rb2 {[%clk 0:00:01]} 32. Rc7 {[%clk 0:01:18]} 1-0